bitfinex/quotes_ETHUSD_20250905
["timestamp","ask_amount","ask_price","bid_price","bid_amount"]
[1757078298013,6.13251064,4457.3,4457.2,0.001]
[1757078298208,6.43831064,4457.3,4457.2,1.00298769]
[1757078298415,8.45307597,4457.3,4457.2,1.00298769]
[1757078299733,8.45307597,4457.3,4457.2,1.00299777]
[1757078299929,6.78987597,4457.3,4457.2,1.00299777]
[1757078300148,0.9176,4457.8,4457.3,0.792]
[1757078300365,2.24341161,4457.5,4457.4,1.00199777]
[1757078300657,0.9176,4457.8,4457.5,0.792]
[1757078300830,2.24345111,4457.5,4457.2,0.001]
[1757078301021,2.24345111,4457.5,4457.4,0.792]
[1757078301349,2.5706,4458.6,4457.4,1.31619508]
[1757078301552,2.24322576,4457.9,4457.5,0.34171459]
[1757078301718,4.6274,4457.8,4457.7,0.792]
[1757078301917,4.6274,4457.8,4457.7,1.00199508]
[1757078301918,7.795459,4457.8,4457.7,1.00199508]
[1757078303057,1.653,4458.6,4457.7,1.31619508]
[1757078303223,3.6003428,4458.5,4457.9,0.792]
[1757078303424,0.74893428,4458.4,4458.1,0.792]
[1757078303771,0.74893428,4458.4,4458.2,1.00199508]
[1757078303772,7.48945201,4458.3,4458.2,1.00199508]
[1757078304049,7.79525201,4458.3,4458.2,1.00199508]
[1757078304250,7.79525201,4458.3,4458.2,0.20999508]
[1757078304873,2.24347284,4457.4,4457.2,0.001]
[1757078305087,6.13251064,4457.3,4457.2,0.001]
[1757078305266,6.13251064,4457.3,4457.2,0.793]
[1757078305267,3.889,4457.3,4457.2,0.793]
[1757078305993,6.13251064,4457.3,4457.2,0.793]
[1757078306361,7.79571064,4457.3,4457.2,0.793]
[1757078306901,8.54464492,4457.3,4457.2,0.001]
[1757078307049,13.19764492,4457.3,4457.2,0.001]
[1757078307452,3.62533428,4457.3,4457.2,0.001]
[1757078307746,7.89651064,4457.3,4457.2,0.001]
[1757078307969,5.653,4457.3,4457.2,0.001]
[1757078308169,7.89651064,4457.3,4457.2,0.001]
[1757078308456,5.653,4457.3,4457.2,0.001]
[1757078308969,3.888,4457.5,4457.3,0.792]
[1757078309172,2.24311202,4458.1,4457.4,3.34966031]
[1757078309371,1.655,4458.3,4457.7,0.792]
[1757078309578,3.888,4458.2,4457.8,0.21005458]
[1757078309760,6.13106638,4458.2,4457.9,1.00205458]
[1757078310080,6.13106638,4458.2,4458.1,0.792]
[1757078310081,3.888,4458.2,4458.1,0.792]
[1757078310297,3.888,4458.2,4458.1,1.00205458]
[1757078311323,4.1938,4458.2,4458.1,1.00205458]
[1757078311585,7.79425773,4458.2,4458.1,1.00205458]
[1757078311887,8.96268136,4458.2,4458.1,1.00205458]
[1757078312183,7.79345773,4458.2,4458.1,1.00205458]
[1757078312501,0.002,4458.3,4458.2,3.03505773]
[1757078312679,0.002,4458.3,4458.2,3.55931231]
[1757078313259,0.002,4458.3,4458.2,4.12331231]
[1757078313459,0.002,4458.3,4458.2,8.14875818]
[1757078314188,0.027,4458.8,4458.7,3.03480619]
[1757078314394,0.002,4459.3,4458.7,11.78586077]
[1757078314560,0.002,4459.3,4459.2,6.34875471]
[1757078314760,0.002,4459.3,4459.2,6.55880929]
[1757078314956,0.002,4459.3,4459.2,8.00295309]
[1757078315605,0.025,4460.8,4460.7,3.03380061]
[1757078315901,0.025,4460.8,4460.7,3.24385519]
[1757078316197,0.025,4460.8,4460.7,7.14447319]
[1757078316401,0.025,4460.8,4460.7,7.12205519]
[1757078316708,0.025,4460.8,4460.7,8.44724824]
[1757078316913,1e-08,4460.8,4460.7,8.44724824]
[1757078317805,1e-08,4460.8,4460.7,8.6156187]
[1757078317965,0.002,4461.3,4461.2,3.03354935]
[1757078318171,0.002,4461.3,4461.2,10.13060393]
[1757078318398,0.002,4461.3,4461.2,12.24826858]
[1757078318900,0.006,4462.8,4462.5,3.03288978]
[1757078319100,0.006,4462.8,4462.5,0.792]
[1757078319280,0.006,4462.8,4462.7,0.904]
[1757078319679,1.6975,4462.8,4462.7,0.904]
[1757078320774,3.93824572,4462.8,4462.7,0.792]
[1757078321082,4.55613577,4462.8,4462.7,0.792]
[1757078322303,2.31539005,4462.8,4461.6,1.764]
[1757078322609,2.24119797,4461.9,4461.6,0.112]
[1757078322808,2.24119797,4461.9,4461.7,0.792]
[1757078323010,1.6915,4461.8,4461.7,0.792]
[1757078323493,0.006,4462.8,4462.0,0.792]
[1757078323686,0.006,4462.8,4462.2,0.112]
[1757078324085,0.006,4462.8,4462.3,0.792]
[1757078324295,0.006,4462.8,4462.3,3.03299579]
[1757078324485,2.55274657,4462.4,4462.3,0.792]
[1757078324687,3.93244657,4462.4,4461.8,0.792]
[1757078324891,3.93244657,4462.4,4462.1,0.792]
[1757078325210,1.3797,4462.3,4462.1,0.792]
[1757078325387,0.112,4462.7,4462.1,0.792]
[1757078325791,2.68924614,4462.6,4462.1,0.792]
[1757078325998,0.112,4462.7,4462.1,0.792]
[1757078326202,1.3797,4462.5,4462.1,0.792]
[1757078326399,1.3797,4462.4,4462.1,0.792]
[1757078326580,2.24109724,4462.1,4461.8,0.20710929]
[1757078326779,0.3118,4461.9,4461.5,0.112]
[1757078326974,2.24134839,4461.6,4461.5,0.112]
[1757078327180,3.93284839,4461.6,4461.5,0.112]
[1757078327477,1.6915,4461.6,4460.9,0.20710929]
[1757078327678,2.24159188,4461.2,4460.8,0.025]
[1757078327886,0.112,4461.4,4460.8,0.025]
[1757078328110,2.5535001,4460.9,4460.8,0.025]
[1757078328310,2.24214825,4460.1,4459.8,0.025]
[1757078328808,2.55400273,4459.9,4459.8,0.025]
[1757078328974,0.3118,4459.9,4459.8,0.025]
[1757078329180,1.6915,4459.9,4459.8,0.025]
[1757078329483,0.9313,4460.9,4459.8,0.3119]
[1757078329678,0.9313,4460.9,4460.3,0.112]
[1757078329880,2.2417888,4460.8,4460.4,0.792]
[1757078330127,1.3797,4460.7,4460.4,0.792]
[1757078330338,0.4484,4460.6,4460.4,0.792]
[1757078331047,1.6915,4460.5,4460.4,0.792]
[1757078331212,1.6915,4460.5,4460.0,0.792]
[1757078331414,1.3797,4460.4,4459.8,0.137]
[1757078331609,3.62165767,4460.4,4459.8,0.137]
[1757078331844,1.3797,4460.4,4459.9,0.792]
[1757078332116,0.3118,4460.0,4459.9,0.792]
[1757078332337,1.6915,4460.0,4459.9,0.20743618]
[1757078332545,3.93365469,4460.0,4459.9,0.20743618]
[1757078332713,3.93365469,4460.0,4459.8,0.025]
[1757078332913,3.62190273,4459.9,4459.8,0.025]
[1757078333114,3.62190273,4459.9,4459.8,0.23243618]
[1757078333432,3.93370273,4459.9,4459.8,0.025]
[1757078333931,7.81670273,4459.9,4459.8,0.025]
[1757078335345,8.83378431,4459.9,4459.8,0.025]
[1757078337243,3.883,4459.9,4459.8,0.025]
[1757078337447,4.1948,4459.9,4459.8,0.025]
[1757078337748,6.99740273,4459.9,4459.8,0.025]
[1757078337949,7.92870273,4459.9,4459.8,0.025]
[1757078338444,4.04570273,4459.9,4459.8,0.025]
[1757078338644,7.92870273,4459.9,4459.8,0.025]
[1757078339363,3.995,4459.9,4459.8,1.1039]
[1757078339524,0.4484,4461.2,4459.9,0.792]
[1757078339712,4.3564,4461.8,4461.2,0.792]
[1757078339912,0.025,4461.8,4461.2,0.792]
[1757078340132,0.025,4461.8,4461.7,0.792]
[1757078340545,0.025,4461.8,4461.7,3.24152431]
[1757078340847,0.025,4461.8,4461.7,3.40462431]
[1757078341045,0.025,4461.8,4461.7,3.96922438]
[1757078341626,0.025,4461.8,4461.7,4.13937473]
[1757078342022,0.025,4461.8,4461.7,3.97627473]
[1757078342877,0.025,4461.8,4461.7,4.13937473]
[1757078343273,0.025,4461.8,4461.7,7.13937473]
[1757078343475,0.025,4461.8,4461.7,7.59407473]
[1757078344240,0.025,4461.8,4461.7,7.13937473]
[1757078344440,0.025,4461.8,4461.7,6.97627473]
[1757078345269,0.025,4461.8,4461.7,11.02137473]
[1757078345648,0.025,4461.8,4461.7,5.44682623]
[1757078345842,0.025,4461.8,4461.7,7.68812438]
[1757078346055,0.025,4461.8,4461.7,7.85122438]
[1757078347242,0.025,4461.8,4461.7,5.44682623]
[1757078347440,0.025,4461.8,4461.7,1.00022616]
[1757078347738,0.002,4462.6,4462.5,6.03289635]
[1757078348046,0.002,4462.6,4462.5,10.12312251]
[1757078348268,0.002,4462.6,4462.5,10.74092251]
[1757078348637,0.002,4462.6,4462.5,10.74117071]
[1757078348874,0.002,4462.6,4462.5,12.03938471]
[1757078349448,0.002,4462.6,4462.5,11.69668471]
[1757078349655,0.002,4462.6,4462.5,12.15138471]
[1757078350873,0.002,4462.6,4462.5,7.02268471]
[1757078351080,1.6486,4462.6,4462.5,0.20847436]
[1757078352485,3.88944614,4462.6,4462.5,0.20847436]
[1757078352845,1.6486,4462.6,4462.5,0.20847436]
[1757078353045,0.8842,4462.6,4462.5,0.20847436]
[1757078353250,1.6486,4462.6,4462.5,1.00047436]
[1757078354355,4.50305632,4462.6,4462.5,0.20847436]
[1757078356076,1.6486,4462.6,4462.5,1.00047436]
[1757078356681,1.6486,4462.6,4462.5,0.20847436]
[1757078356878,3.88944614,4462.6,4462.5,0.20847436]
[1757078358455,0.7664,4462.6,4462.5,1.00047436]
[1757078359181,0.7664,4462.6,4462.5,0.20847436]
[1757078359351,0.002,4462.6,4462.5,0.13407436]
[1757078360161,0.002,4462.6,4462.5,3.33007071]
[1757078360367,0.002,4462.6,4462.5,6.88717442]
[1757078361066,0.002,4462.6,4462.5,11.30507442]
[1757078361265,0.002,4463.1,4463.0,3.0326453]
[1757078361466,0.002,4463.5,4463.4,6.0324445]
[1757078361666,0.002,4463.5,4463.4,10.0755445]
[1757078361867,0.002,4463.5,4463.4,11.8854406]
[1757078362410,1e-08,4463.8,4463.7,3.03229392]
[1757078362560,0.027,4464.8,4463.8,3.03224373]
[1757078362757,0.027,4464.8,4463.8,6.61884373]
[1757078362962,0.027,4464.8,4463.8,6.72074373]
[1757078363162,0.027,4464.8,4463.8,7.84088427]
[1757078364599,0.027,4464.8,4463.8,11.72088427]
[1757078365295,0.027,4464.8,4463.8,11.61898427]
[1757078365467,0.4505,4464.7,4463.8,7.26438427]
[1757078365663,0.4505,4464.7,4463.8,11.30648427]
[1757078365869,0.027,4464.8,4463.8,11.30648427]
[1757078366117,0.027,4464.8,4463.8,11.60788427]
[1757078367566,0.027,4464.8,4464.4,0.792]
[1757078367567,0.02620001,4464.8,4464.4,0.792]
[1757078367793,0.02620001,4464.8,4464.3,3.0]
[1757078367794,0.02620001,4464.8,4464.7,6.03179214]
[1757078367994,0.02620001,4464.8,4464.7,6.19489214]
[1757078368530,0.02620001,4464.8,4464.7,10.07389214]
[1757078368701,0.02620001,4464.8,4464.7,6.19489214]
[1757078369025,1.67280001,4464.8,4464.7,5.23979214]
[1757078369196,1.67280001,4464.8,4464.7,3.0]
[1757078369895,1.67280001,4464.8,4464.7,3.792]
[1757078370092,1.67280001,4464.8,4464.7,6.03179214]
[1757078370329,0.02620001,4464.8,4464.7,6.03179214]
[1757078370824,1.67280001,4464.8,4464.7,6.03179214]
[1757078371455,1.67280001,4464.8,4464.7,3.99997764]
[1757078372728,1.67280001,4464.8,4464.7,6.23976978]
[1757078373121,1.67280001,4464.8,4464.7,3.99997764]
[1757078373334,0.02620001,4464.8,4464.7,11.29265086]
[1757078374030,0.02620001,4464.8,4464.7,11.12955086]
[1757078374331,0.02620001,4464.8,4464.7,10.12976978]
[1757078374699,0.02620001,4464.8,4464.7,10.35436978]
[1757078374924,0.02620001,4464.8,4464.7,10.12976978]
[1757078375528,1.67280001,4464.8,4464.7,10.12976978]
[1757078375841,1.67280001,4464.8,4464.7,0.20797764]
[1757078376030,4.07982199,4464.8,4464.7,0.20797764]
[1757078376233,1.95128001,4464.8,4464.7,0.20797764]
[1757078377945,0.02620001,4464.8,4464.7,3.35096978]
[1757078379447,1.66830001,4464.8,4464.7,1.11117764]
[1757078380139,1.66830001,4464.8,4464.7,3.35096978]
[1757078380346,1.66830001,4464.8,4464.7,7.63096978]
[1757078380645,0.02620001,4464.8,4464.7,7.63096978]
[1757078380834,0.02620001,4464.8,4464.7,7.8901531]
[1757078381042,0.02620001,4464.8,4464.7,7.7270531]
[1757078382643,0.02620001,4464.8,4464.7,6.35096978]
[1757078382847,0.02620001,4464.8,4464.7,6.51406978]
[1757078384153,1e-08,4464.8,4464.7,8.57746978]
[1757078385068,1e-08,4464.8,4464.7,8.57771618]
[1757078385522,1e-08,4464.8,4464.7,8.16431618]
[1757078386147,1e-08,4464.8,4464.7,9.89272414]
[1757078386324,1e-08,4464.8,4464.7,9.99462414]
[1757078388242,0.002,4465.3,4465.2,3.03154134]
[1757078388447,0.002,4465.3,4465.2,10.11876538]
[1757078388656,0.002,4465.3,4465.2,10.39306538]
[1757078388842,0.002,4465.3,4465.2,11.65633301]
[1757078389371,0.002,4465.3,4465.2,11.49323301]
[1757078389577,0.002,4465.3,4465.2,7.61423301]
[1757078389878,0.002,4465.3,4465.2,11.49323301]
[1757078390376,1.6441,4465.3,4465.2,5.55896538]
[1757078390686,1.6441,4465.3,4465.2,6.43696538]
[1757078390981,1.6441,4465.3,4465.2,0.31942404]
[1757078391186,1.6441,4465.3,4465.2,2.55896538]
[1757078391383,1.6441,4465.3,4465.2,0.31942404]
[1757078391542,1.6441,4465.3,4465.2,1.11142404]
[1757078391748,1.6441,4465.3,4465.2,0.9032]
[1757078392474,1.6441,4465.3,4465.2,3.03154134]
[1757078392845,1.6441,4465.3,4465.2,0.792]
[1757078393273,1.6441,4465.3,4465.2,3.03154134]
[1757078393585,1.6441,4465.3,4465.0,0.1112]
[1757078393747,1.6441,4465.3,4463.9,1.651]
[1757078393748,2.35076323,4465.2,4464.5,0.753]
[1757078393943,0.2856,4464.6,4464.5,0.753]
[1757078394152,1.6421,4464.6,4464.5,5.99289248]
[1757078394869,1.6421,4464.6,4464.5,1.545]
[1757078395066,1.6421,4464.6,4464.3,0.001]
[1757078395375,1.6413,4464.6,4464.3,0.001]
[1757078396147,1.81655,4464.6,4464.3,0.001]
[1757078396344,2.23994265,4464.4,4464.3,0.001]
[1757078396578,1.81655,4464.6,4464.3,0.001]
[1757078396780,0.733,4464.4,4464.3,0.001]
[1757078397087,1.6421,4464.4,4464.3,0.001]
[1757078398479,3.88204265,4464.4,4464.3,0.001]
[1757078398689,1.6421,4464.4,4464.3,0.001]
[1757078402395,4.67556699,4464.4,4464.3,0.001]
[1757078402695,2.24014336,4464.0,4463.9,0.001]
[1757078402896,2.35219355,4463.9,4463.8,0.025]
[1757078403198,1.7541,4463.9,4463.8,0.025]
[1757078403395,1.7541,4463.9,4463.8,2.26524373]
[1757078403895,0.4474,4464.3,4464.1,2.24006726]
[1757078404078,0.4474,4464.2,4464.1,2.24009318]
[1757078404385,0.4474,4464.6,4464.5,2.23989248]
[1757078404688,1.6421,4464.6,4464.3,0.792]
[1757078404885,1.6421,4464.6,4464.5,2.23989248]
[1757078405187,0.16641,4465.3,4464.7,2.2397617]
[1757078405494,0.2856,4464.8,4464.7,2.2397617]
[1757078405693,1.3565,4465.1,4465.0,2.23964165]
[1757078405868,0.002,4465.3,4465.1,0.792]
[1757078406194,0.002,4465.3,4465.2,3.03154134]
[1757078406689,0.002,4465.3,4465.2,10.60489629]
[1757078407493,0.002,4465.3,4465.2,10.89469629]
[1757078407794,0.002,4465.3,4465.2,10.99839629]
[1757078409087,0.002,4465.3,4465.2,11.20730865]
[1757078409589,1e-08,4465.8,4465.7,3.03129059]
[1757078409792,1e-08,4465.8,4465.7,7.9452711]
[1757078410196,1e-08,4465.8,4465.7,8.1112711]
[1757078411178,1e-08,4465.8,4465.7,4.2332711]
[1757078411370,1e-08,4465.8,4465.7,7.11820295]
[1757078411801,1e-08,4465.8,4465.7,7.28420295]
[1757078413503,1e-08,4465.8,4465.7,7.3991866]
[1757078413698,1e-08,4465.8,4465.7,7.45401594]
[1757078414407,1e-08,4465.8,4465.7,7.56521594]
[1757078414705,1e-08,4465.8,4465.7,5.14397352]
[1757078414903,1e-08,4465.8,4465.7,9.02097352]
[1757078415207,1e-08,4465.8,4465.7,8.68516053]
[1757078415389,0.31010001,4465.8,4465.7,8.68516053]
[1757078415593,1e-08,4465.8,4465.7,8.68516053]
[1757078416188,1e-08,4465.8,4465.7,9.01703885]
[1757078416391,1e-08,4466.2,4465.8,0.792]
[1757078416599,1e-08,4466.2,4466.1,3.03109003]
[1757078416804,1e-08,4466.2,4466.1,10.39420239]
[1757078419411,1e-08,4466.2,4466.1,10.75720239]
[1757078419799,1e-08,4466.2,4466.1,10.49790239]
[1757078420009,0.002,4466.6,4466.5,3.03088951]
[1757078420205,0.002,4466.6,4466.5,10.9651837]
[1757078420511,0.002,4466.6,4466.5,11.47179481]
[1757078420885,0.002,4466.6,4466.5,11.36809481]
[1757078421212,0.002,4466.6,4466.5,11.10879481]
[1757078421914,0.45720001,4468.2,4467.7,6.03028815]
[1757078422082,0.45720001,4468.2,4467.7,10.11520051]
[1757078422785,0.3351,4467.8,4467.7,4.00091236]
[1757078423112,1.633,4467.8,4467.7,0.792]
[1757078423313,1.6322,4467.8,4467.7,3.03028815]
[1757078423518,1.6322,4467.8,4467.7,0.792]
[1757078424051,1.6322,4467.8,4467.7,6.90528815]
[1757078424316,1.6322,4467.8,4467.7,7.81965926]
[1757078424317,0.0242,4467.8,4467.7,7.81965926]
[1757078425003,0.7903,4467.8,4467.7,7.81965926]
[1757078427048,0.4802,4467.8,4467.7,7.81965926]
[1757078427214,0.0242,4467.8,4467.7,11.19302825]
[1757078427546,0.00120001,4468.2,4468.0,0.792]
[1757078427860,0.00120001,4468.2,4468.1,7.71547556]
[1757078428015,0.00120001,4468.2,4468.1,10.71547556]
[1757078428635,0.00120001,4468.2,4468.1,10.88147556]
[1757078429942,0.00120001,4468.2,4468.1,6.84047556]
[1757078430136,0.00120001,4468.2,4468.1,10.82667556]
[1757078432162,0.31130001,4468.2,4468.1,6.15967556]
[1757078432316,1.60920001,4468.2,4468.1,9.31945676]
[1757078432712,0.00120001,4468.2,4468.1,10.27745676]
[1757078433225,0.00120001,4468.2,4468.1,10.27728295]
[1757078434226,0.00120001,4468.2,4468.1,10.11128295]
[1757078434545,0.00120001,4468.2,4468.1,11.36306012]
[1757078434920,0.00120001,4468.2,4468.1,7.48906012]
[1757078435120,0.00120001,4468.2,4468.1,11.36306012]
[1757078435752,0.76730001,4468.2,4468.1,3.23728295]
[1757078435918,1.60920001,4468.2,4468.1,2.44528295]
[1757078436332,1.60920001,4468.2,4468.1,9.31928295]
[1757078437131,1.60920001,4468.2,4468.1,6.31928295]
[1757078437327,0.00120001,4468.2,4468.1,7.17502909]
[1757078437532,0.00120001,4468.2,4468.1,10.96702909]
[1757078437728,1.60920001,4468.2,4468.1,10.11128295]
[1757078439360,1.60920001,4468.2,4468.1,10.11028295]
[1757078440060,1.60920001,4468.2,4468.1,0.20719518]
[1757078440261,1.60920001,4468.2,4468.1,4.08019518]
[1757078440465,0.74300001,4468.2,4468.1,6.31828295]
[1757078440654,0.74300001,4468.2,4468.1,10.74221125]
[1757078441164,1.59630001,4468.2,4468.1,10.11028295]
[1757078442232,1.59630001,4468.2,4468.1,10.22148295]
[1757078442771,1.59630001,4468.2,4468.1,6.34848295]
[1757078442972,1.59630001,4468.2,4468.1,4.08019518]
[1757078443145,1.59630001,4468.2,4468.1,6.31828295]
[1757078443579,1.75593001,4468.2,4468.1,4.08019518]
[1757078443774,1.75593001,4468.2,4468.1,4.87219518]
[1757078443981,1.59630001,4468.2,4468.1,4.87219518]
[1757078444183,1.59630001,4468.2,4468.1,7.11028295]
[1757078444764,1.59630001,4468.2,4468.1,4.87219518]
[1757078444964,1.59630001,4468.2,4468.1,0.99919518]
[1757078445279,1.59630001,4468.2,4468.1,0.20719518]
[1757078445482,4.21776724,4468.2,4468.1,0.20719518]
[1757078445682,4.21776724,4468.2,4466.4,1.649]
[1757078445683,3.0,4468.0,4465.1,1.649]
[1757078445984,2.23833825,4467.6,4464.9,2.23969181]
[1757078446182,2.23833825,4467.6,4464.8,0.058]
[1757078446183,3.46489745,4467.6,4464.8,0.058]
[1757078446358,2.23876887,4466.8,4465.9,2.23918663]
[1757078446680,1.2998,4466.7,4465.9,2.23916827]
[1757078446883,1.2998,4466.6,4466.0,2.23912518]
[1757078447049,1.2998,4466.6,4465.7,3.873]
[1757078447380,2.71973878,4467.9,4465.8,3.873]
[1757078447381,1.2998,4466.5,4465.8,3.873]
[1757078447584,1.2998,4466.5,4466.0,2.23912853]
[1757078447783,1.2998,4466.5,4466.1,0.792]
[1757078447960,0.8533,4466.4,4466.2,0.792]
[1757078448155,1.5951,4466.3,4466.2,0.792]
[1757078448354,1.5951,4466.3,4466.1,0.792]
[1757078448560,1.2998,4466.2,4466.1,3.03109003]
[1757078448758,0.8533,4466.2,4465.9,0.792]
[1757078449056,1.5951,4466.2,4465.9,0.792]
[1757078449365,1.2998,4466.1,4466.0,0.792]
[1757078449766,1.5951,4466.1,4466.0,3.03114017]
[1757078450155,1.1486,4466.1,4466.0,3.03114017]
[1757078450890,0.4465,4466.5,4466.4,0.792]
[1757078451188,0.0242,4466.8,4466.4,0.792]
[1757078451395,0.2953,4466.5,4466.2,0.792]
[1757078451887,1.2998,4466.4,4466.0,0.792]
[1757078452075,0.2953,4466.1,4465.8,0.792]
[1757078452659,1.2998,4466.0,4465.8,3.03123879]
[1757078452970,1.5951,4465.9,4465.8,3.03124044]
[1757078453987,1.5951,4465.9,4465.8,0.792]
[1757078454868,1.5951,4465.9,4465.8,3.03124044]
[1757078455066,1.5951,4465.9,4465.8,3.03224044]
[1757078455467,1.1486,4465.9,4465.8,3.03224044]
[1757078455792,0.8533,4466.6,4466.4,0.792]
[1757078455972,0.8533,4466.6,4466.5,3.03088951]
[1757078456175,0.002,4466.7,4466.6,2.23883938]
[1757078456683,0.2973,4466.7,4466.6,2.23883938]
[1757078456865,0.002,4466.7,4466.6,2.23883938]
[1757078457398,0.2973,4466.7,4466.6,2.23883938]
[1757078458160,0.2973,4466.7,4466.6,3.03083938]
[1757078458366,0.002,4466.7,4466.6,3.03083938]
[1757078458874,0.2973,4466.7,4466.6,3.03083938]
[1757078459091,1.5971,4466.7,4466.6,3.03083938]
[1757078459391,1.5971,4466.7,4466.6,3.23827082]
[1757078459584,0.8553,4466.7,4466.6,3.23827082]
[1757078459771,0.002,4466.7,4466.6,11.39227082]
[1757078459976,0.002,4466.7,4466.6,12.75538685]
[1757078460889,0.002,4466.7,4466.6,11.39227082]
[1757078461084,0.2973,4466.7,4466.6,11.39227082]
[1757078461288,1.5971,4466.7,4466.6,7.11227082]
[1757078462001,1.1506,4466.7,4466.6,7.11227082]
[1757078462501,1.5971,4466.7,4466.6,7.11227082]
[1757078462995,1.1506,4466.7,4466.6,7.11227082]
[1757078463200,0.002,4466.7,4466.6,7.11227082]
[1757078464387,0.002,4467.2,4467.1,6.03058879]
[1757078464703,0.002,4467.2,4467.1,11.00162023]
[1757078465684,1e-08,4467.6,4467.5,3.03038836]
[1757078465894,1e-08,4467.6,4467.5,10.13420368]
[1757078466089,1e-08,4467.6,4467.5,12.29780622]
[1757078466269,1e-08,4467.6,4467.5,12.40900622]
[1757078466475,1e-08,4467.6,4467.5,11.81780622]
[1757078467383,0.29530001,4467.6,4467.5,6.3490198]
[1757078467596,0.29530001,4467.6,4467.5,10.2230198]
[1757078467798,1.14860001,4467.6,4467.5,10.2230198]
[1757078467996,1e-08,4467.6,4467.5,10.2230198]
[1757078468200,0.29530001,4467.6,4467.5,10.2230198]
[1757078468996,0.29530001,4467.6,4467.5,4.11063144]
[1757078469197,0.29530001,4467.6,4467.5,6.3490198]
[1757078469575,1.61160001,4467.6,4467.5,0.20743144]
[1757078469776,1.77526001,4467.6,4467.5,0.20743144]
[1757078470710,4.01359826,4467.6,4467.5,0.20743144]
[1757078470911,1.77526001,4467.6,4467.5,0.20743144]
[1757078471216,4.01359826,4467.6,4467.5,0.20743144]
[1757078471808,2.23853332,4467.3,4466.6,3.873]
[1757078472015,3.55485791,4467.2,4466.7,0.20749909]
[1757078472330,3.55485791,4467.2,4466.8,0.20749909]
[1757078472331,2.23859923,4467.1,4466.8,0.20749909]
[1757078472612,4.13417047,4467.2,4466.9,0.20749909]
[1757078472790,1.0319249,4467.2,4467.0,0.20749909]
[1757078472997,1.631,4467.1,4466.6,0.792]
[1757078473313,1.3163,4467.0,4466.8,0.792]
[1757078473502,1.3163,4467.0,4466.9,0.99953852]
[1757078473708,1.631,4467.0,4466.9,0.99953852]
[1757078474917,1.631,4467.0,4466.9,0.792]
[1757078475114,1.631,4467.0,4466.7,0.20753852]
[1757078475115,2.23868902,4466.9,4466.8,0.20753852]
[1757078475304,2.01815601,4467.0,4466.7,0.20734872]
[1757078475305,3.86964887,4467.0,4466.7,0.20734872]
[1757078475616,0.3147,4466.8,4466.6,0.001]
[1757078475920,2.55345219,4466.8,4466.6,0.001]
[1757078476092,1.70327522,4466.7,4466.6,0.001]
[1757078476589,2.01797522,4466.7,4466.6,0.001]
[1757078476785,1.631,4466.7,4466.6,0.20828376]
[1757078477178,1.631,4466.7,4466.6,1.00028376]
[1757078477379,0.8637,4466.7,4466.6,1.0002156]
[1757078478223,1.631,4466.7,4466.6,1.0002156]
[1757078478589,1.1784,4466.7,4466.6,1.0002156]
[1757078478788,1.3183,4467.1,4466.7,0.792]
[1757078478992,0.3147,4466.8,4466.7,0.792]
[1757078479302,1.631,4466.8,4466.7,0.20775478]
[1757078479496,1.631,4466.8,4466.6,0.001]
[1757078479688,0.8637,4466.7,4466.6,0.001]
[1757078479889,0.1112,4467.0,4466.6,0.20883678]
[1757078480190,0.9749,4467.0,4466.7,0.20783678]
[1757078480444,0.3147,4466.8,4466.6,0.001]
[1757078480729,0.1112,4467.0,4466.7,0.20781341]
[1757078480904,0.1112,4467.0,4466.9,0.792]
[1757078481300,1.7422,4467.0,4466.7,0.792]
[1757078481540,2.6645389,4467.0,4466.9,0.792]
[1757078481845,0.4259,4467.0,4466.6,0.001]
[1757078482139,0.8637,4466.9,4466.7,0.20754705]
[1757078482306,1.1784,4466.8,4466.6,0.793]
[1757078482508,0.3147,4466.8,4466.7,0.20752754]
[1757078483137,1.631,4466.8,4466.7,0.20752754]
[1757078483604,1.1784,4466.8,4466.7,0.99952754]
[1757078483904,0.1112,4467.0,4466.7,3.23830219]
[1757078484164,0.0012,4467.1,4466.9,1.092]
[1757078484304,0.0012,4467.1,4467.0,3.23822029]
[1757078484826,0.0012,4467.1,4467.0,3.53822029]
[1757078485142,0.0012,4467.1,4467.0,3.64942029]
[1757078486130,0.0012,4467.1,4467.0,1.11078139]
[1757078486328,0.0012,4467.1,4467.0,3.34942029]
[1757078486533,0.0012,4467.1,4467.0,1.11078139]
[1757078486764,0.3159,4467.1,4467.0,1.11078139]
[1757078487160,0.0012,4467.1,4467.0,1.11078139]
[1757078487670,0.0012,4467.1,4467.0,1.41078139]
[1757078487965,0.0012,4467.1,4467.0,3.64942029]
[1757078488166,0.0012,4467.1,4467.0,3.34942029]
[1757078488361,0.0012,4467.1,4467.0,1.11078139]
[1757078488680,1.6322,4467.1,4467.0,0.20758139]
[1757078488829,0.1112,4467.0,4466.6,0.001]
[1757078489034,0.1112,4467.0,4466.8,0.792]
[1757078489233,1.631,4466.9,4466.6,0.001]
[1757078489461,0.1112,4466.8,4466.6,0.001]
[1757078489661,0.1112,4466.8,4466.7,0.20695817]
[1757078489863,1.932862,4466.8,4466.7,0.20695817]
[1757078490181,1.932862,4466.8,4466.6,0.001]
[1757078490466,1.3163,4466.7,4466.6,0.001]
[1757078490676,1.3163,4466.7,4466.6,1.00007488]
[1757078490860,3.86978926,4466.7,4466.6,0.001]
[1757078491060,4.89802345,4466.7,4466.6,0.001]
[1757078493888,2.23883938,4466.6,4466.1,0.001]
[1757078494099,2.2391903,4465.9,4465.8,0.026]
[1757078494390,4.2038903,4465.9,4465.8,0.026]
[1757078494695,9.3921903,4465.9,4465.8,0.026]
[1757078494894,9.80395836,4465.9,4465.8,0.026]
[1757078495506,7.56476806,4465.9,4465.8,0.026]
[1757078495662,6.24846806,4465.9,4465.8,0.026]
[1757078495859,9.80395836,4465.9,4465.8,0.026]